fUST/lending_fUST_20240305
["ID","MTS","AMOUNT","RATE_DAILY","PERIOD"]
[316781632,1709615440620,-500.0,0.00024657,2]
[316781634,1709615440629,-500.0,0.00024657,2]
[316781636,1709615440638,-500.0,0.00024657,2]
[316781638,1709615440650,-500.0,0.00024657,2]
[316781640,1709615440659,-540.50809734,0.00024657,2]
[316781642,1709615440668,-500.0,0.00024657,2]
[316781644,1709615440680,-500.0,0.00024657,2]
[316781646,1709615440689,-500.0,0.00024657,2]
[316781648,1709615440698,-500.0,0.00024657,2]
[316781650,1709615440707,-500.0,0.00024657,2]
[316781652,1709615440720,-183.27684247,0.00024657,2]
[316781654,1709615440729,-220.79355221,0.00024657,2]
[316781656,1709615440738,-500.0,0.00024657,2]
[316781658,1709615440747,-439.61434999,0.00024657,2]
[316781660,1709615440756,-335.22666597,0.00024657,2]
[316781662,1709615440768,-500.0,0.00024657,2]
[316781664,1709615440778,-500.0,0.00024657,2]
[316781666,1709615440788,-500.0,0.00024657,2]
[316781668,1709615440798,-500.0,0.00024657,2]
[316781670,1709615440809,-594.43814504,0.00024657,2]
[316781672,1709615440818,-500.0,0.00024657,2]
[316781674,1709615440829,-500.0,0.00024657,2]
[316781676,1709615440838,-500.0,0.00024657,2]
[316781678,1709615440848,-500.0,0.00024657,2]
[316781680,1709615440857,-500.0,0.00024657,2]
[316781681,1709615440866,-500.0,0.00024657,2]
[316781683,1709615440876,-500.0,0.00024657,2]
[316781685,1709615440885,-500.0,0.00024657,2]
[316781687,1709615440897,-500.0,0.00024657,2]
[316781689,1709615440907,-611.62161071,0.00024657,2]
[316781690,1709615440916,-500.0,0.00024657,2]
[316781693,1709615440926,-500.0,0.00024657,2]
[316781694,1709615440936,-500.0,0.00024657,2]
[316781696,1709615440945,-500.0,0.00024657,2]
[316781698,1709615440955,-500.0,0.00024657,2]
[316781700,1709615440964,-500.0,0.00024657,2]
[316781702,1709615440973,-500.0,0.00024657,2]
[316781704,1709615440982,-359.46809522,0.00024657,2]
[316781706,1709615440991,-500.0,0.00024657,2]
[316781708,1709615441001,-500.0,0.00024657,2]
[316781710,1709615441010,-500.0,0.00024657,2]
[316781712,1709615441019,-503.10329273,0.00024657,2]
[316781714,1709615441029,-500.0,0.00024657,2]
[316781716,1709615441038,-611.51,0.00024657,2]
[316781718,1709615441047,-611.51,0.00024657,2]
[316781720,1709615441057,-500.0,0.00024657,2]
[316781722,1709615441066,-611.51,0.00024657,2]
[316781724,1709615441075,-611.51,0.00024657,2]
[316781726,1709615441084,-611.51,0.00024657,2]
[316781728,1709615441093,-611.51,0.00024657,2]
[316781730,1709615441103,-611.51,0.00024657,2]
[316781732,1709615441111,-611.51,0.00024657,2]
[316781733,1709615441120,-611.51,0.00024657,2]
[316781735,1709615441130,-611.51,0.00024657,2]
[316781737,1709615441139,-611.51,0.00024657,2]
[316781739,1709615441151,-611.51,0.00024657,2]
[316781741,1709615441160,-611.51,0.00024657,2]
[316781743,1709615441169,-611.51,0.00024657,2]
[316781745,1709615441178,-611.51,0.00024657,2]
[316781747,1709615441187,-611.51,0.00024657,2]
[316781749,1709615441197,-611.51,0.00024657,2]
[316781751,1709615441207,-611.51,0.00024657,2]
[316781753,1709615441216,-611.51,0.00024657,2]
[316781755,1709615441225,-611.51,0.00024657,2]
[316781757,1709615441235,-611.51,0.00024657,2]
[316781759,1709615441244,-611.51,0.00024657,2]
[316781761,1709615441253,-611.51,0.00024657,2]
[316781763,1709615441262,-500.0,0.00024657,2]
[316781765,1709615441271,-611.74010618,0.00024657,2]
[316781767,1709615441281,-500.0,0.00024657,2]
[316781769,1709615441290,-500.0,0.00024657,2]
[316781771,1709615441299,-500.0,0.00024657,2]
[316781773,1709615441308,-500.0,0.00024657,2]
[316781775,1709615441317,-283.09919993,0.00024657,2]
[316781776,1709615441327,-500.0,0.00024657,2]
[316781778,1709615441336,-500.0,0.00024657,2]
[316781780,1709615441345,-500.0,0.00024657,2]
[316781782,1709615441353,-500.0,0.00024657,2]
[316781784,1709615441363,-500.0,0.00024657,2]
[316781786,1709615441372,-500.0,0.00024657,2]
[316781788,1709615441381,-512.46806462,0.00024657,2]
[316781790,1709615441389,-500.0,0.00024657,2]
[316781792,1709615441401,-500.0,0.00024657,2]
[316781794,1709615441410,-500.0,0.00024657,2]
[316781796,1709615441419,-500.0,0.00024657,2]
[316781798,1709615441428,-500.0,0.00024657,2]
[316781800,1709615441438,-539.09,0.00024657,2]
[316781801,1709615441447,-539.09,0.00024657,2]
[316781803,1709615441456,-539.09,0.00024657,2]
[316781805,1709615441466,-539.09,0.00024657,2]
[316781807,1709615441475,-539.09,0.00024657,2]
[316781809,1709615441485,-539.09,0.00024657,2]
[316781811,1709615441494,-539.09,0.00024657,2]
[316781813,1709615441503,-539.09,0.00024657,2]
[316781815,1709615441513,-539.09,0.00024657,2]
[316781817,1709615441522,-539.09,0.00024657,2]
[316781819,1709615441531,-539.09,0.00024657,2]
[316781821,1709615441540,-539.09,0.00024657,2]
[316781823,1709615441549,-539.09,0.00024657,2]
[316781825,1709615441558,-8353.37,0.00024657,2]
[316781827,1709615441567,-539.09,0.00024657,2]
[316781828,1709615441576,-8353.37,0.00024657,2]
[316781830,1709615441585,-8353.37,0.00024657,2]
[316781832,1709615441594,-539.09,0.00024657,2]
[316781834,1709615441603,-8353.37,0.00024657,2]
[316781836,1709615441613,-539.09,0.00024657,2]
[316781838,1709615441622,-8353.37,0.00024657,2]
[316781840,1709615441631,-8353.37,0.00024657,2]
[316781842,1709615441640,-539.09,0.00024657,2]
[316781843,1709615441651,-8353.37,0.00024657,2]
[316781845,1709615441660,-539.09,0.00024657,2]
[316781847,1709615441669,-539.09,0.00024657,2]
[316781849,1709615441684,-8353.37,0.00024657,2]
[316781851,1709615441693,-539.09,0.00024657,2]
[316781853,1709615441703,-8353.37,0.00024657,2]
[316781855,1709615441712,-500.0,0.00024657,2]
[316781857,1709615441722,-539.09,0.00024657,2]
[316781859,1709615441732,-8353.37,0.00024657,2]
[316781861,1709615441741,-539.09,0.00024657,2]
[316781863,1709615441751,-500.0,0.00024657,2]
[316781865,1709615441761,-8353.37,0.00024657,2]
[316781867,1709615441773,-539.09,0.00024657,2]
[316781869,1709615441783,-539.21827188,0.00024657,2]
[316781871,1709615441792,-500.0,0.00024657,2]
[316781873,1709615441802,-8353.37,0.00024657,2]
[316781874,1709615441812,-500.0,0.00024657,2]
[316781876,1709615441822,-807.99401166,0.00024657,2]
[316782275,1709615445882,-1458.98613537,0.00024656,2]
[316782277,1709615445892,-2349.88091514,0.00024656,2]
[316782279,1709615445904,-3501.13294949,0.00024657,2]
[316782296,1709615446037,-3032.08600186,0.00024657,2]
[316782850,1709615451730,-2188.20383006,0.00024656,2]
[316782851,1709615451740,-208.80113887,0.00024656,2]
[316782852,1709615451750,-1605.3304544,0.00024656,2]
[316782853,1709615451759,-500.0,0.00024657,2]
[316782854,1709615451768,-500.0,0.00024657,2]
[316782855,1709615451777,-500.0,0.00024657,2]
[316782856,1709615451787,-500.0,0.00024657,2]
[316782857,1709615451797,-500.0,0.00024657,2]
[316782858,1709615451807,-500.0,0.00024657,2]
[316782859,1709615451817,-500.0,0.00024657,2]
[316782860,1709615451827,-500.0,0.00024657,2]
[316782862,1709615451838,-500.0,0.00024657,2]
[316782865,1709615451848,-500.0,0.00024657,2]
[316782868,1709615451858,-500.0,0.00024657,2]
[316782871,1709615451868,-500.0,0.00024657,2]
[316782874,1709615451878,-500.0,0.00024657,2]
[316782877,1709615451887,-500.0,0.00024657,2]
[316782880,1709615451897,-500.0,0.00024657,2]
[316782883,1709615451908,-500.0,0.00024657,2]
[316782885,1709615451924,-500.0,0.00024657,2]
[316782888,1709615451939,-250.96157667,0.00024657,2]
[316788588,1709616638811,-1958.23409595,0.00021311,2]
[316788590,1709616638821,-13199.23911076,0.00021311,2]
[316788592,1709616638832,-2126.98666319,0.00021311,2]
[316788598,1709616638877,-109.64748855,0.00021311,2]
[316788600,1709616638888,-323.20898482,0.00021312,2]
[316788602,1709616638899,-1008.90900513,0.00021312,2]
[316788604,1709616638911,-1564.32631966,0.00021312,2]
[316788870,1709616641627,-1096.44683494,0.00021312,2]
[316788871,1709616641639,-1459.64974792,0.00021411,2]
[316789193,1709616645814,-1021.06553599,0.0002131,2]
[316789196,1709616645824,-145.68070648,0.00021411,2]
[316789199,1709616645834,-168.881964,0.00021514,2]
[316789201,1709616645842,-285.0,0.00022,2]
[316789203,1709616645852,-363.637068,0.00022073,2]
[316789205,1709616645861,-285.0,0.00022192,2]
[316789207,1709616645870,-361.71311001,0.00022557,2]
[316789209,1709616645879,-210.0,0.00022828,2]
[316789211,1709616645890,-186.50135669,0.00022828,2]
[316789213,1709616645899,-166.86644807,0.00022828,2]
[316789215,1709616645908,-508.5977221,0.00023,2]
[316789217,1709616645920,-18910.78723334,0.00023,2]
[316789219,1709616645929,-285.0,0.00023014,2]
[316789221,1709616645938,-2329.53769302,0.00023118,3]
[316789223,1709616645947,-1261.13773672,0.00023119,5]
[316789225,1709616645956,-165.393169,0.00023409,2]
[316789227,1709616645965,-200.0,0.00024,2]
[316789229,1709616645974,-1458.98613537,0.00024,2]
[316789231,1709616645983,-289.0,0.00024164,2]
[316789233,1709616645993,-620.21968848,0.00024291,2]
[316789235,1709616646002,-168.881964,0.00024447,2]
[316789237,1709616646011,-4380.43403756,0.00024557,2]
[316789345,1709616647044,-328.28987709,0.00024557,2]
[316796004,1709617306249,612.09185209,0.00018491,2]
[316796616,1709617326229,510.07654341,0.00018491,2]
[316796617,1709617346249,510.07654341,0.00018491,2]
[316796618,1709617364284,265.74987912,0.00018491,2]
[316796620,1709617385764,265.74987912,0.00018491,2]
[316796621,1709617398949,789.99,0.000198,2]
[316796622,1709617405757,265.74987912,0.00018491,2]
[316796623,1709617419761,265.74987912,0.00018491,2]
[316796624,1709617435760,265.74987912,0.00018491,2]
[316796625,1709617453760,265.74987912,0.00018491,2]
[316796626,1709617471768,265.74987912,0.00018491,2]
[316796627,1709617489774,265.74987912,0.00018491,2]
[316796628,1709617513763,265.74987912,0.00018491,2]
[316796630,1709617533993,265.74987912,0.00018491,2]
[316796644,1709617551891,470.38807937,0.000189,2]
[316796646,1709617553997,185.81399869,0.00018491,2]
[316797811,1709617833185,-916.26916694,0.00022048,2]
[316797906,1709617839779,-533.99952897,0.00022048,2]
[316797913,1709617840172,-2356.11540004,0.00022048,2]
[316797914,1709617840181,-1605.3304544,0.00022049,2]
[316797915,1709617840192,-349.15209507,0.00022828,2]
[316797916,1709617840201,-165.393169,0.00022844,2]
[316797917,1709617840211,-181.818534,0.00023004,2]
[316797919,1709617840221,-250.0,0.00023046,2]
[316797920,1709617840231,-1653.96631747,0.0002312,5]
[316797921,1709617840240,-470.38807937,0.000239,2]
[316797922,1709617840249,-1654.84504179,0.0002398,2]
[316797923,1709617840259,-173.56634015,0.00024457,2]
[316797924,1709617840268,-300.0,0.00024556,2]
[316797926,1709617840278,-3290.27423784,0.00024557,2]
[316797991,1709617842989,-578.79842962,0.00024557,2]
[316798641,1709617849616,-18810.16029753,0.00024557,2]
[316798643,1709617849625,-153.0,0.00024564,2]
[316798645,1709617849634,-153.0,0.00024564,2]
[316798647,1709617849644,-153.8584861,0.00024564,2]
[316798649,1709617849654,-153.0,0.000246,2]
[316798651,1709617849663,-153.0,0.000246,2]
[316798653,1709617849673,-350.02,0.00024647,3]
[316798655,1709617849683,-287.44545859,0.00024655,2]
[316798668,1709617849792,-523.22573647,0.00024655,2]
[316798670,1709617849803,-197.84619993,0.00024655,2]
[316798672,1709617849813,-210.33845456,0.00024655,2]
[316798674,1709617849822,-323.15597031,0.00024656,2]
[316798676,1709617849831,-11926.31808628,0.00024656,2]
[316798678,1709617849840,-263.75743886,0.00024657,2]
[316798680,1709617849849,-500.0,0.00024657,2]
[316798682,1709617849858,-500.0,0.00024657,2]
[316798684,1709617849870,-500.0,0.00024657,2]
[316798686,1709617849879,-500.0,0.00024657,2]
[316798688,1709617849888,-500.0,0.00024657,2]
[316798690,1709617849897,-500.0,0.00024657,2]
[316798692,1709617849906,-500.0,0.00024657,2]
[316798694,1709617849915,-500.0,0.00024657,2]
[316798696,1709617849924,-500.0,0.00024657,2]
[316798698,1709617849934,-500.0,0.00024657,2]
[316798700,1709617849943,-500.0,0.00024657,2]
[316798702,1709617849953,-500.0,0.00024657,2]
[316798704,1709617849962,-454.20262327,0.00024657,2]
[316798706,1709617849971,-500.0,0.00024657,2]
[316798708,1709617849981,-195.56292732,0.00024657,2]
[316798710,1709617849991,-500.0,0.00024657,2]
[316798712,1709617850000,-500.0,0.00024657,2]
[316798714,1709617850011,-500.0,0.00024657,2]
[316798715,1709617850021,-500.0,0.00024657,2]
[316798718,1709617850033,-500.0,0.00024657,2]
[316798719,1709617850044,-500.0,0.00024657,2]
[316798723,1709617850066,-500.0,0.00024657,2]
[316798725,1709617850078,-500.0,0.00024657,2]
[316798727,1709617850089,-500.0,0.00024657,2]
[316798729,1709617850100,-500.0,0.00024657,2]
[316798731,1709617850111,-511.41450052,0.00024657,2]
[316798733,1709617850125,-345.56159778,0.00024657,2]
[316798735,1709617850136,-151.0,0.00024657,2]
[316798737,1709617850147,-151.0,0.00024657,2]
[316798739,1709617850159,-151.0,0.00024657,2]
[316798741,1709617850170,-151.0,0.00024657,2]
[316798743,1709617850181,-151.0,0.00024657,2]
[316798745,1709617850192,-151.0,0.00024657,2]
[316798747,1709617850202,-164.57435215,0.00024657,2]
[316798749,1709617850213,-500.0,0.00024657,2]
[316798751,1709617850223,-500.0,0.00024657,2]
[316798753,1709617850234,-500.0,0.00024657,2]
[316798755,1709617850245,-496.34684433,0.00024657,2]
[316798757,1709617850255,-500.32612712,0.00024657,2]
[316798759,1709617850266,-500.0,0.00024657,2]
[316798761,1709617850277,-502.39577721,0.00024657,2]
[316798764,1709617850287,-23447.38,0.00024657,2]
[316798766,1709617850297,-23447.38,0.00024657,2]
[316798768,1709617850307,-23447.38,0.00024657,2]
[316798770,1709617850318,-23447.38,0.00024657,2]
[316798772,1709617850328,-23447.38,0.00024657,2]
[316798774,1709617850339,-23447.38,0.00024657,2]
[316798776,1709617850350,-23447.38,0.00024657,2]
[316798778,1709617850363,-23447.38,0.00024657,2]
[316798780,1709617850375,-23447.38,0.00024657,2]
[316798782,1709617850385,-23447.38,0.00024657,2]
[316798784,1709617850398,-23447.38,0.00024657,2]
[316798786,1709617850409,-23447.38,0.00024657,2]
[316798788,1709617850419,-23447.38,0.00024657,2]
[316798790,1709617850429,-23447.38,0.00024657,2]
[316798792,1709617850439,-19542.73843902,0.00024657,2]
[316798795,1709617850457,-1755.72476602,0.00024657,2]
[316799011,1709618051559,7289.49801904,0.00018179,2]
[316799014,1709618074446,197.84619793,0.0001968,10]
[316799067,1709618473994,1100.0,0.00027,120]
[316799174,1709618775353,155.18777721,0.00019796,2]
[316799184,1709618802963,1498.45295726,0.00019796,2]
[316799346,1709619032234,-3806.38409595,0.0001999,2]
[316799347,1709619032244,-1605.3304544,0.00019999,2]
[316799348,1709619032253,-385.0,0.0002,2]
[316799349,1709619032262,-500.6336356,0.00022,2]
[316799350,1709619032272,-278.593046,0.00022433,2]
[316799351,1709619032281,-166.666666,0.00022454,2]
[316799352,1709619032290,-210.82059445,0.00022554,2]
[316799365,1709619038141,-810.24494154,0.00022554,2]
[316799367,1709619038151,-697.095469,0.00022828,2]
[316799441,1709619040297,-4609.24864237,0.00022828,2]
[316799443,1709619040307,-500.0,0.00023,2]
[316799445,1709619040317,-335.80615824,0.00023121,3]
[316799447,1709619040327,-1402.36121782,0.00023122,5]
[316799460,1709619043185,-1884.66919884,0.00023122,5]
[316799461,1709619043195,-783.8300417,0.00024,2]
[316799462,1709619043206,-1140.988603,0.00024,2]
[316799463,1709619043216,-500.0,0.00024,3]
[316799464,1709619043225,-153.0,0.00024178,2]
[316799465,1709619043234,-200.8478084,0.00024556,2]
[316799466,1709619043243,-5469.0256505,0.00024557,2]
[316799467,1709619043252,-153.0,0.00024564,2]
[316799468,1709619043263,-153.0,0.00024564,2]
[316799469,1709619043273,-200.8478084,0.00024564,2]
[316799470,1709619043283,-153.0,0.00024564,2]
[316799471,1709619043293,-200.8478084,0.00024564,2]
[316799472,1709619043303,-153.0,0.00024564,2]
[316799473,1709619043313,-153.0,0.00024564,2]
[316799474,1709619043322,-200.8478084,0.00024564,2]
[316799475,1709619043332,-200.8478084,0.00024564,2]
[316799476,1709619043343,-200.8478084,0.00024564,2]
[316799477,1709619043353,-8239.79880319,0.00024565,2]
[316799478,1709619043362,-200.8478084,0.000246,2]
[316799479,1709619043371,-153.0,0.000246,2]
[316799480,1709619043381,-153.0,0.000246,2]
[316799481,1709619043391,-300.0,0.000246,11]
[316799482,1709619043400,-210.49,0.00024647,3]
[316799483,1709619043409,-5399.09838123,0.00024655,2]
[316799484,1709619043418,-262.48262514,0.00024655,7]
[316799485,1709619043427,-157.81000743,0.00024655,2]
[316799486,1709619043435,-262.31089602,0.00024655,2]
[316799487,1709619043445,-858.45160482,0.00024656,2]
[316799488,1709619043454,-500.0,0.00024657,2]
[316799489,1709619043463,-500.0,0.00024657,2]
[316799490,1709619043473,-500.0,0.00024657,2]
[316799491,1709619043482,-349.49777011,0.00024657,2]
[316799501,1709619046363,-581.0,0.000246,2]
[316799502,1709619046373,-500.0,0.00024657,2]
[316799503,1709619046383,-500.0,0.00024657,2]
[316799504,1709619046392,-351.42451442,0.00024657,2]
[316799505,1709619046425,-153.30311551,0.00024657,2]
[316799506,1709619046435,-500.0,0.00024657,2]
[316799507,1709619046444,-615.62026165,0.00024657,2]
[316799508,1709619046454,-500.0,0.00024657,2]
[316799509,1709619046463,-503.94259034,0.00024657,2]
[316799510,1709619046473,-446.07987424,0.00024657,2]
[316799511,1709619046482,-502.07688249,0.00024657,2]
[316799512,1709619046491,-500.0,0.00024657,2]
[316799513,1709619046500,-500.0,0.00024657,2]
[316799514,1709619046510,-500.0,0.00024657,2]
[316799515,1709619046519,-415.9694324,0.00024657,2]
[316799516,1709619046528,-501.35206728,0.00024657,2]
[316799517,1709619046538,-500.0,0.00024657,2]
[316799518,1709619046548,-507.95325425,0.00024657,2]
[316799519,1709619046557,-500.0,0.00024657,2]
[316799520,1709619046566,-463.39210763,0.00024657,2]
[316799521,1709619046576,-504.55945008,0.00024657,2]
[316799522,1709619046585,-500.0,0.00024657,2]
[316799523,1709619046597,-500.0,0.00024657,2]
[316799524,1709619046606,-507.10057998,0.00024657,2]
[316799525,1709619046615,-500.0,0.00024657,2]
[316799526,1709619046624,-502.21427229,0.00024657,2]
[316799527,1709619046633,-500.0,0.00024657,2]
[316799528,1709619046643,-500.0,0.00024657,2]
[316799529,1709619046651,-500.0,0.00024657,2]
[316799530,1709619046662,-171.87963591,0.00024657,2]
[316799531,1709619046671,-501.90283502,0.00024657,2]
[316799532,1709619046680,-502.25694637,0.00024657,2]
[316799533,1709619046782,-504.38160006,0.00024657,2]
[316799534,1709619046793,-501.54926379,0.00024657,2]
[316799535,1709619046802,-502.79712559,0.00024657,2]
[316799536,1709619046812,-500.0,0.00024657,2]
[316799537,1709619046821,-155.54128577,0.00024657,2]
[316799538,1709619046831,-500.0,0.00024657,2]
[316799539,1709619046840,-500.0,0.00024657,2]
[316799540,1709619046850,-500.0,0.00024657,2]
[316799541,1709619046860,-500.0,0.00024657,2]
[316799542,1709619046869,-500.0,0.00024657,2]
[316799543,1709619046879,-500.0,0.00024657,2]
[316799544,1709619046888,-560.1417705,0.00024657,2]
[316799545,1709619046897,-7973.19,0.00024657,2]
[316799546,1709619046907,-7973.19,0.00024657,2]
[316799547,1709619046916,-7973.19,0.00024657,2]
[316799548,1709619046926,-7973.19,0.00024657,2]
[316799549,1709619046936,-7973.19,0.00024657,2]
[316799550,1709619046946,-7973.19,0.00024657,2]
[316799551,1709619046955,-500.0,0.00024657,2]
[316799552,1709619046965,-7973.19,0.00024657,2]
[316799553,1709619046975,-500.0,0.00024657,2]
[316799554,1709619046985,-500.0,0.00024657,2]
[316799555,1709619046994,-500.0,0.00024657,2]
[316799556,1709619047004,-242.10137409,0.00024657,2]
[316799557,1709619047014,-7973.19,0.00024657,2]
[316799558,1709619047023,-7973.19,0.00024657,2]
[316799559,1709619047033,-7973.19,0.00024657,2]
[316799560,1709619047043,-7973.19,0.00024657,2]
[316799561,1709619047052,-7973.19,0.00024657,2]
[316799562,1709619047061,-7973.19,0.00024657,2]
[316799563,1709619047071,-7973.19,0.00024657,2]
[316799564,1709619047080,-7973.19,0.00024657,2]
[316799565,1709619047090,-7973.19,0.00024657,2]
[316799566,1709619047101,-7973.19,0.00024657,2]
[316799567,1709619047111,-7973.19,0.00024657,2]
[316799568,1709619047120,-7973.19,0.00024657,2]
[316799569,1709619047130,-7973.19,0.00024657,2]
[316799570,1709619047140,-7973.19,0.00024657,2]
[316799571,1709619047150,-7973.19,0.00024657,2]
[316799572,1709619047160,-7973.19,0.00024657,2]
[316799573,1709619047169,-7973.41936881,0.00024657,2]
[316799574,1709619047179,-500.0,0.00024657,2]
[316799575,1709619047188,-473.51969163,0.00024657,2]
[316799576,1709619047198,-646.79134656,0.00024657,2]
[316799577,1709619047207,-500.0,0.00024657,2]
[316799578,1709619047217,-500.0,0.00024657,2]
[316799579,1709619047226,-500.0,0.00024657,2]
[316799580,1709619047236,-500.0,0.00024657,2]
[316799581,1709619047245,-500.0,0.00024657,2]
[316799582,1709619047254,-500.0,0.00024657,2]
[316799583,1709619047263,-500.0,0.00024657,2]
[316799584,1709619047273,-500.0,0.00024657,2]
[316799585,1709619047282,-500.0,0.00024657,2]
[316799586,1709619047291,-500.0,0.00024657,2]
[316799587,1709619047301,-500.0,0.00024657,2]
[316799588,1709619047310,-500.0,0.00024657,2]
[316799589,1709619047320,-500.0,0.00024657,2]
[316799590,1709619047329,-500.0,0.00024657,2]
[316799591,1709619047339,-1001.28,0.00024657,2]
[316799592,1709619047350,-500.0,0.00024657,2]
[316799593,1709619047359,-1001.28,0.00024657,2]
[316799594,1709619047369,-501.61560237,0.00024657,2]
[316799595,1709619047379,-1001.28,0.00024657,2]
[316799596,1709619047388,-1001.28,0.00024657,2]
[316799597,1709619047398,-1001.28,0.00024657,2]
[316799598,1709619047407,-1001.28,0.00024657,2]
[316799599,1709619047417,-1001.28,0.00024657,2]
[316799600,1709619047427,-1001.28,0.00024657,2]
[316799601,1709619047436,-1001.28,0.00024657,2]
[316799602,1709619047446,-1001.28,0.00024657,2]
[316799603,1709619047457,-1001.28,0.00024657,2]
[316799604,1709619047468,-1001.28,0.00024657,2]
[316799605,1709619047477,-1001.28,0.00024657,2]
[316799606,1709619047487,-1001.28,0.00024657,2]
[316799607,1709619047498,-1001.28,0.00024657,2]
[316799608,1709619047507,-1001.28,0.00024657,2]
[316799609,1709619047517,-1001.28,0.00024657,2]
[316799610,1709619047526,-1001.28,0.00024657,2]
[316799611,1709619047535,-1001.28,0.00024657,2]
[316799612,1709619047545,-993.08,0.00024657,2]
[316799613,1709619047554,-1001.28,0.00024657,2]
[316799614,1709619047563,-295.30533083,0.00024657,2]
[316799615,1709619047573,-501.54141491,0.00024657,2]
[316799616,1709619047583,-993.08,0.00024657,2]
[316799617,1709619047593,-1001.28,0.00024657,2]
[316799618,1709619047603,-993.08,0.00024657,2]
[316799619,1709619047613,-993.08,0.00024657,2]
[316799620,1709619047623,-1001.28,0.00024657,2]
[316799621,1709619047632,-993.08,0.00024657,2]
[316799622,1709619047642,-993.08,0.00024657,2]
[316799623,1709619047652,-1001.28,0.00024657,2]
[316799624,1709619047662,-501.91902817,0.00024657,2]
[316799625,1709619047673,-993.08,0.00024657,2]
[316799626,1709619047682,-1001.44508169,0.00024657,2]
[316799627,1709619047692,-993.08,0.00024657,2]
[316799628,1709619047701,-993.08,0.00024657,2]
[316799629,1709619047711,-993.08,0.00024657,2]
[316799630,1709619047721,-993.08,0.00024657,2]
[316799631,1709619047730,-993.08,0.00024657,2]
[316799632,1709619047739,-993.08,0.00024657,2]
[316799633,1709619047749,-993.08,0.00024657,2]
[316799634,1709619047762,-993.08,0.00024657,2]
[316799635,1709619047772,-993.08,0.00024657,2]
[316799636,1709619047782,-993.08,0.00024657,2]
[316799637,1709619047791,-993.08,0.00024657,2]
[316799638,1709619047802,-993.08,0.00024657,2]
[316799639,1709619047811,-8944.8,0.00024657,2]
[316799640,1709619047820,-8944.8,0.00024657,2]
[316799641,1709619047830,-993.08,0.00024657,2]
[316799642,1709619047840,-8944.8,0.00024657,2]
[316799643,1709619047852,-993.08,0.00024657,2]
[316799644,1709619047861,-8944.8,0.00024657,2]
[316799645,1709619047870,-993.08,0.00024657,2]
[316799646,1709619047879,-8944.8,0.00024657,2]
[316799647,1709619047888,-993.08,0.00024657,2]
[316799648,1709619047898,-5233.78385891,0.00024657,2]
[316799649,1709619047917,-3711.01614109,0.00024657,2]
[316799650,1709619047927,-993.29325725,0.00024657,2]
[316799651,1709619047936,-4701.96786996,0.00024657,2]
[316799652,1709619047947,-3366.1999995,0.00024657,2]
[316799653,1709619047958,-876.63213054,0.00024657,2]
[316799654,1709619047968,-3081.03948246,0.00024657,2]
[316799655,1709619047990,-5863.76051754,0.00024657,2]
[316799656,1709619047999,-8944.8,0.00024657,2]
[316799657,1709619048009,-8944.8,0.00024657,2]
[316799658,1709619048019,-500.0,0.00024657,2]
[316799659,1709619048028,-8944.8,0.00024657,2]
[316799660,1709619048037,-500.0,0.00024657,2]
[316799661,1709619048047,-8944.8,0.00024657,2]
[316799662,1709619048056,-500.0,0.00024657,2]
[316799663,1709619048065,-8944.8,0.00024657,2]
[316799664,1709619048074,-500.0,0.00024657,2]